fUSD/lending_fUSD_20240204
["ID","MTS","AMOUNT","RATE_DAILY","PERIOD"]
[313277560,1707070237553,-4875.91816058,0.00023,2]
[313277561,1707070237565,-4979.68399983,0.00023,2]
[313277562,1707070237577,-5000.5188135,0.00023,2]
[313277563,1707070237607,-998.80882928,0.00023,2]
[313277564,1707070237618,-4314.02492,0.00023,2]
[313277565,1707070237663,-4503962.3365818,0.00023,2]
[313277566,1707070237672,-2601.92040923,0.00023,2]
[313277567,1707070237681,-1273177.7683834,0.00023,2]
[313277568,1707070237693,-275.96458678,0.00023,2]
[313277569,1707070237705,-669.85172881,0.00023,2]
[313277570,1707070237721,-17816.88699591,0.00023,2]
[313277571,1707070237733,-6457.43240327,0.00023,2]
[313277572,1707070237827,-73772.67781443,0.00023,2]
[313277573,1707070237839,-32348.6651359,0.00023,2]
[313277574,1707070237851,-21237.62500295,0.00023,2]
[313277575,1707070237863,-124907.95005435,0.00023,2]
[313277576,1707070237874,-40865.24291392,0.00023,2]
[313277577,1707070237887,-307.60963438,0.00023,2]
[313277605,1707070240133,-1714.89958669,0.00023,2]
[313277606,1707070240149,-256.4100647,0.00023,2]
[313277607,1707070240822,-1853.95178425,0.00023,2]
[313277608,1707070240875,-216065.0063915,0.00023,2]
[313277609,1707070240891,-1467.29741007,0.00023,2]
[313277624,1707070242737,-235.64898851,0.000229,2]
[313277625,1707070242747,-158.33847036,0.00022999,2]
[313277626,1707070242757,-550.32853531,0.00023,2]
[313277627,1707070242793,-19830.26695166,0.00023,2]
[313277641,1707070245677,-1135.04153302,0.00022999,2]
[313277642,1707070245687,-804.28463065,0.00023,2]
[313277653,1707070345520,200.0,0.00022471,2]
[313277654,1707070364390,2975.1026,0.00022469,2]
[313277655,1707070387675,250.0,0.00022463,2]
[313277656,1707070388354,200.0,0.00022351,2]
[313277657,1707070421227,23900.0,0.0002247,2]
[313277658,1707070446075,200.0,0.00022345,2]
[313277659,1707070527228,500.0,0.00022204,2]
[313277660,1707070541962,201.62,0.00022204,2]
[313277661,1707070612029,162.51,0.00017763,2]
[313277662,1707070623244,348.5,0.00020175,2]
[313277663,1707070623635,348.5,0.00022439,2]
[313277664,1707070645115,186.99,0.00022093,2]
[313277665,1707070663280,150.0,0.00022055,2]
[313277666,1707070678912,573.8,0.00022004,2]
[313277667,1707070682658,250.0,0.00022004,2]
[313277668,1707070761514,500.0,0.00022094,2]
[313277669,1707070767545,1584.59,0.00022198,2]
[313277670,1707070794250,151.85,0.00022418,2]
[313277671,1707070818010,497.74555716,0.00020277,5]
[313277672,1707070822117,190.98,0.00022165,2]
[313277673,1707070847442,2000.0,0.00022201,2]
[313277676,1707070873643,204.83167773,0.00022428,2]
[313277677,1707070893824,200.0,0.00022136,2]
[313277699,1707071035550,419.59459495,0.0002251,2]
[313277708,1707071049169,203.39653031,0.0002251,2]
[313277709,1707071053433,731.97994428,0.0002251,2]
[313277710,1707071057977,162.80158799,0.0002251,2]
[313277712,1707071063694,769.2989068,0.0002251,2]
[313277713,1707071072802,204.05609396,0.0002251,2]
[313277714,1707071073348,568.43,0.00022239,2]
[313277715,1707071074450,413.55100587,0.0002251,2]
[313277716,1707071076786,155.0,0.0002251,2]
[313277717,1707071077775,1406.21419992,0.0002251,2]
[313277718,1707071080834,150.0,0.00022239,2]
[313277723,1707071093935,228.91,0.00022294,2]
[313277725,1707071147579,313.65,0.0002024,2]
[313277726,1707071148008,313.65,0.00022504,2]
[313277728,1707071154058,201.62,0.00022158,2]
[313277729,1707071157394,250.0,0.00022158,2]
[313277730,1707071187131,1320.49,0.00022158,2]
[313277736,1707071221548,300.0,0.0002251,2]
[313277737,1707071222408,150.0,0.0002251,2]
[313277743,1707071251333,151.85,0.00022329,2]
[313277745,1707071267935,322.8,0.00022105,2]
[313277747,1707071296967,162.80158799,0.0002251,2]
[313277748,1707071305830,204.05609396,0.0002251,2]
[313277751,1707071314975,162.52247527,0.0002251,2]
[313277752,1707071362478,200.0,0.0002207,2]
[313277753,1707071402331,150.0,0.0002251,2]
[313277754,1707071402628,150.0,0.0002251,2]
[313277759,1707071431679,-269.55837322,0.00022511,2]
[313277760,1707071431690,-203.04789463,0.00022511,2]
[313277761,1707071431700,-67.67332213,0.00022511,2]
[313277762,1707071433697,-463.06432174,0.00022511,2]
[313277763,1707071433707,-767.13970801,0.00022511,2]
[313277764,1707071433716,-203.24868701,0.00022511,2]
[313277765,1707071433726,-3862.91907233,0.00022511,2]
[313277766,1707071433737,-651.28142392,0.00022511,2]
[313277767,1707071433752,-5970.66273488,0.00022511,2]
[313277768,1707071433764,-553.74088929,0.00022511,2]
[313277769,1707071433775,-5335.54724617,0.00022511,2]
[313277770,1707071433786,-2604.46225729,0.00022511,2]
[313277771,1707071433799,-1839.24926668,0.00022511,2]
[313277772,1707071433818,-636.63138398,0.00022511,2]
[313277773,1707071433977,-5465.27405715,0.00022511,2]
[313277774,1707071434006,-967.369,0.00022511,2]
[313277776,1707071434018,-328.86266831,0.00022511,2]
[313277778,1707071434027,-13337.56317635,0.0002259,2]
[313277780,1707071434037,-10943.17415415,0.000226,2]
[313277782,1707071434048,-339.95296193,0.000226,2]
[313277785,1707071434060,-499.51621629,0.000226,2]
[313277787,1707071434072,-4734.87157085,0.000226,2]
[313277789,1707071434084,-255.0,0.000226,2]
[313277791,1707071434096,-517.62055247,0.000226,2]
[313277795,1707071434116,-254.82664005,0.000226,2]
[313277810,1707071437711,-699.0577829,0.000226,2]
[313277811,1707071437723,-1148.39572136,0.000226,2]
[313277812,1707071437733,-393.64627864,0.00022665,4]
[313277813,1707071437744,-232.65072984,0.00022665,4]
[313277814,1707071437756,-208.41030953,0.00022665,2]
[313277815,1707071437766,-147.25399524,0.00022667,2]
[313277816,1707071437789,-161.69560476,0.00022667,2]
[313277817,1707071437798,-269.79944319,0.00022667,2]
[313277818,1707071437810,-14205.84785681,0.00022667,2]
[313277819,1707071437819,-254.45539238,0.00022698,2]
[313277820,1707071437828,-512.29615867,0.00022699,2]
[313277821,1707071437839,-155.0,0.00022699,2]
[313277822,1707071437850,-499.99,0.00022699,2]
[313277823,1707071437859,-3221.0756,0.000227,2]
[313277824,1707071437869,-4005.2343,0.000227,2]
[313277825,1707071437878,-2880.91611393,0.000227,2]
[313277826,1707071437890,-2998.551319,0.000227,2]
[313277827,1707071437901,-821.90291404,0.000227,2]
[313277828,1707071437912,-271.81469396,0.000227,2]
[313277829,1707071437928,-34362.28734475,0.000227,2]
[313277830,1707071437949,-1195.43925594,0.000227,2]
[313277831,1707071437961,-1106.13673529,0.000227,2]
[313277832,1707071437994,-9992.2416,0.000227,2]
[313277833,1707071438009,-1125.725006,0.000227,2]
[313277869,1707071440246,-6168.48821709,0.000227,2]
[313277871,1707071440255,-1251.651244,0.000227,2]
[313277873,1707071440267,-5195.84305317,0.000227,2]
[313277874,1707071440279,-304.98639663,0.000227,2]
[313277875,1707071440300,-513.84877829,0.000227,2]
[313277876,1707071440312,-300.0,0.000227,2]
[313277877,1707071440408,-561.6645378,0.000227,2]
[313277878,1707071441047,-7641.57211398,0.000227,2]
[313277879,1707071441099,-577.75434099,0.000227,2]
[313277880,1707071441110,-23038.69933514,0.000227,2]
[313277881,1707071441120,-1000.0,0.000227,2]
[313277882,1707071441129,-31992.663,0.000227,2]
[313277883,1707071441138,-500.0,0.000227,2]
[313277884,1707071441147,-4168.3216,0.000227,2]
[313277885,1707071441157,-151.85,0.00022717,2]
[313277886,1707071441166,-188.46955123,0.0002279,2]
[313277887,1707071441176,-1567.36436773,0.000228,2]
[313277888,1707071442734,-412.63618464,0.000228,2]
[313277889,1707071442896,-11928.04342016,0.000228,2]
[313277890,1707071442952,-1178.83976775,0.000228,2]
[313277915,1707071445733,-233226.78398319,0.000228,2]
[313277917,1707071445745,-250.46,0.000228,2]
[313277919,1707071445787,-34662.52008305,0.000228,2]
[313277920,1707071445810,-408.0,0.000228,2]
[313277921,1707071445965,-440.80572,0.000228,2]
[313277922,1707071445978,-6496.02062856,0.000228,2]
[313277923,1707071446020,-10179.62234861,0.000228,2]
[313277925,1707071446076,-577.2793438,0.000228,2]
[313278138,1707071512551,150.0,0.00021976,2]
[313278139,1707071594078,326.43,0.00019929,2]
[313278140,1707071594300,326.43,0.00022193,2]
[313278141,1707071600214,167.8,0.00021821,2]
[313278142,1707071607919,186.99,0.00021871,2]
[313278143,1707071613450,250.0,0.00021867,2]
[313278144,1707071626832,162.27716286,0.00022433,2]
[313278145,1707071631829,162.27716285,0.00022472,2]
[313278146,1707071646088,155.0,0.0002251,2]
[313278147,1707071653162,155.0,0.0002251,2]
[313278148,1707071654193,155.0,0.0002251,2]
[313278149,1707071656649,372.52079518,0.0002251,2]
[313278150,1707071659138,155.0,0.0002251,2]
[313278151,1707071659446,155.0,0.0002251,2]
[313278152,1707071659966,191.56467231,0.0002251,2]
[313278153,1707071663102,155.0,0.0002251,2]
[313278154,1707071664329,699.44102538,0.0002251,2]
[313278155,1707071668787,355.74113653,0.0002251,2]
[313278156,1707071669842,286.37979724,0.0002251,2]
[313278157,1707071671644,155.0,0.0002251,2]
[313278158,1707071680037,155.0,0.0002251,2]
[313278159,1707071684182,172.50573424,0.0002251,2]
[313278160,1707071687423,155.0,0.0002251,2]
[313278161,1707071688296,2118.905,0.00022499,2]
[313278162,1707071688651,229.14462659,0.0002251,2]
[313278163,1707071688680,155.0,0.0002251,2]
[313278164,1707071690674,155.0,0.0002251,2]
[313278165,1707071690733,234.68490786,0.000225,2]
[313278166,1707071692936,481.2212,0.00022499,2]
[313278167,1707071693373,921.14475538,0.0002251,2]
[313278168,1707071699180,631.10009728,0.0002251,2]
[313278169,1707071701027,388.36932466,0.0002251,2]
[313278170,1707071705524,338.86703874,0.0002251,2]
[313278171,1707071707232,868.72680183,0.0002251,2]
[313278172,1707071715637,151.85,0.00021976,2]
[313278173,1707071727202,868.72680183,0.0002251,2]
[313278174,1707071727574,1100.4,0.00021797,2]
[313278175,1707071747217,868.72680183,0.0002251,2]
[313278176,1707071765226,868.72680183,0.00021797,2]
[313278177,1707071775015,229.14462659,0.0002251,2]
[313278178,1707071785226,868.72680183,0.00021797,2]
[313278179,1707071795615,200.0,0.00021804,2]
[313278180,1707071803242,868.72680183,0.00021797,2]
[313278181,1707071823225,868.72680183,0.00021797,2]
[313278182,1707071841232,868.72680183,0.00021797,2]
[313278183,1707071842429,166.52,0.00021784,10]
[313278184,1707071855511,229.14462659,0.0002251,2]
[313278185,1707071857237,868.72680183,0.00021797,2]
[313278186,1707071875236,868.72680183,0.00021784,2]
[313278187,1707071893240,868.72680183,0.00021784,2]
[313278188,1707071915282,868.72680183,0.00021784,2]
[313278189,1707071937248,981.66297003,0.00021784,2]
[313278190,1707071962394,150.0,0.00021797,2]
[313278191,1707071988760,16823.62214266,0.0002251,2]
[313278192,1707072005710,2314.94205742,0.0002251,2]
[313278193,1707072016250,-2000.0,0.00022511,2]
[313278194,1707072016775,-1155.7006203,0.00022511,2]
[313278195,1707072016798,-247.73314621,0.0002257,2]
[313278196,1707072016819,-596.56623349,0.00022599,2]
[313278197,1707072017330,-483.46016651,0.00022599,2]
[313278198,1707072017352,-1516.53983349,0.000226,2]
[313278199,1707072017948,-2000.0,0.000226,2]
[313278200,1707072018749,-2000.0,0.000226,2]
[313278201,1707072019292,-2000.0,0.000226,2]
[313278202,1707072019920,-2000.0,0.000226,2]
[313278203,1707072020551,-2000.0,0.000226,2]
[313278204,1707072021133,-2000.0,0.000226,2]
[313278205,1707072022652,-2000.0,0.000226,2]
[313278206,1707072046358,183.12,0.00021985,2]
[313278207,1707072048953,553.25,0.00021977,2]
[313278208,1707072056863,348.2,0.00020059,2]
[313278209,1707072057114,348.2,0.00022323,2]
[313278210,1707072062423,162.27716285,0.000225,2]
[313278211,1707072086242,2970.33881677,0.00020427,5]
[313278212,1707072103530,150.0,0.00022498,2]
[313278213,1707072111330,250.0,0.00021884,2]
[313278214,1707072115029,168.42,0.00021874,2]
[313278215,1707072152112,1157.01,0.00021784,2]
[313278216,1707072165933,154.33,0.00022032,2]
[313278217,1707072239248,200.0,0.00021826,2]
[313278218,1707072248363,23900.0,0.00021826,2]
[313278219,1707072257426,22217.0,0.00022472,2]
[313278227,1707072296953,250.0,0.00021918,2]
[313278228,1707072432829,191.82,0.00017468,2]
[313278229,1707072451292,152.64318861,0.00021808,2]
[313278230,1707072461365,318.34,0.0002183,2]
[313278231,1707072499174,188.89,0.0002183,2]
[313278232,1707072509653,362.36,0.00019912,2]
[313278233,1707072509850,362.36,0.00022176,2]
[313278234,1707072549081,353.38,0.00022,2]
[313278235,1707072549649,763.61156538,0.0002183,2]
[313278236,1707072549822,5206.34277486,0.0002183,2]
[313278237,1707072550912,997.95531102,0.00021721,2]
[313278238,1707072551292,403.28512965,0.00021175,2]
[313278239,1707072552831,168.41,0.00021834,2]
[313278240,1707072553052,1036.55041269,0.0002183,2]
[313278241,1707072564973,158.6,0.00021817,2]
[313278242,1707072568587,2483.18794287,0.00022016,2]
[313278243,1707072569813,5204.70011666,0.0002183,2]
[313278244,1707072570405,617.92309023,0.00022,2]
[313278245,1707072570850,855.59624894,0.0002183,2]
[313278246,1707072586562,851.71961685,0.00022016,2]
[313278258,1707072631873,-162.27716285,0.0002254,2]
[313278260,1707072631885,-162.27716285,0.0002258,2]
[313278262,1707072631894,-265.648,0.00022599,2]
[313278263,1707072631903,-150.0,0.00022599,2]
[313278264,1707072631913,-551.42687014,0.00022599,2]
[313278265,1707072631922,-2276.29496651,0.000226,2]
[313278266,1707072631932,-417.5366,0.000226,2]
[313278267,1707072631942,-1348.40949631,0.000226,2]
[313278268,1707072631951,-162.27716285,0.0002262,2]
[313278269,1707072631960,-162.27716285,0.0002266,2]
[313278270,1707072631970,-187.14142257,0.00022689,2]
[313278271,1707072631979,-200.4169865,0.00022697,2]
[313278272,1707072631989,-155.14544411,0.00022697,2]
[313278273,1707072631998,-370.95446715,0.00022697,2]
[313278274,1707072632007,-155.0,0.00022697,2]
[313278275,1707072632016,-326.25992106,0.00022697,2]
[313278276,1707072632026,-162.97983708,0.00022697,2]
[313278277,1707072632035,-181.24950927,0.00022697,2]
[313278278,1707072632044,-700.04741639,0.00022697,2]
[313278279,1707072632054,-157.12271265,0.00022697,2]
[313278280,1707072632063,-194.98229267,0.00022697,2]
[313278281,1707072632072,-158.50706686,0.00022697,2]
[313278282,1707072632081,-433.34162445,0.00022697,2]
[313278283,1707072632090,-158.73016693,0.00022697,2]
[313278284,1707072632099,-319.44375601,0.00022697,2]
[313278285,1707072632109,-201.90759892,0.00022697,2]
[313278286,1707072632118,-495.15105302,0.00022697,2]
[313278287,1707072632129,-157.1897612,0.00022697,2]
[313278288,1707072632140,-156.43646517,0.00022697,2]
[313278289,1707072632149,-413.07279928,0.00022697,2]
[313278290,1707072632159,-395.97389933,0.00022697,2]
[313278291,1707072632168,-336.36374591,0.00022697,2]
[313278293,1707072632178,-229.84412706,0.00022697,2]
[313278295,1707072632186,-2251.96367323,0.00022697,2]
[313278297,1707072632195,-489.93939145,0.00022697,2]
[313278299,1707072632205,-482.18037315,0.00022697,2]
[313278301,1707072632214,-509.22596575,0.00022697,2]
[313278303,1707072632224,-1686.25125065,0.00022697,2]
[313278305,1707072632233,-155.32467766,0.00022698,2]
[313278307,1707072632243,-249.46647659,0.00022698,2]
[313278309,1707072632252,-883.73608647,0.00022698,2]
[313278311,1707072632262,-156.12774979,0.00022698,2]
[313278313,1707072632271,-159.31897773,0.00022698,2]
[313278315,1707072632281,-155.20212548,0.00022698,2]
[313278317,1707072632289,-4684.64,0.00022698,2]
[313278319,1707072632299,-457.63,0.00022698,2]
[313278321,1707072632308,-3333.08138673,0.00022699,2]
[313278323,1707072632317,-156.10036171,0.00022699,2]
[313278325,1707072632326,-500.0,0.00022699,2]
[313278327,1707072632336,-500.0,0.00022699,2]
[313278329,1707072632345,-500.0,0.00022699,2]
[313278331,1707072632354,-500.0,0.00022699,2]
[313278333,1707072632363,-500.0,0.00022699,2]
[313278335,1707072632372,-640.22129781,0.00022699,2]
[313278337,1707072632383,-257.89204605,0.00022699,2]
[313278339,1707072632392,-500.0,0.00022699,2]
[313278341,1707072632401,-500.0,0.00022699,2]
[313278343,1707072632410,-400.91353198,0.00022699,2]
[313278345,1707072632419,-500.0,0.00022699,2]
[313278347,1707072632429,-90984.09154556,0.00022699,2]
[313278349,1707072632441,-1912.4899452,0.00022699,2]
[313278351,1707072632453,-550.0,0.00022699,2]
[313278353,1707072632465,-345.3,0.00022699,2]
[313278357,1707072632490,-1141.40303688,0.00022699,2]
[313278392,1707072632798,-8563.424,0.00022699,2]
[313278397,1707072632835,-12962.29331411,0.00022699,2]
[313278399,1707072632847,-2096.25729201,0.00022699,2]
[313278413,1707072637928,-435.87771536,0.00022699,2]
[313278414,1707072637939,-4404.42277343,0.00022699,2]
[313278415,1707072637950,-654.70682192,0.00022699,2]
[313278416,1707072638039,-3081.132,0.00022699,2]
[313278417,1707072638051,-561.11018765,0.00022699,2]
[313278418,1707072638112,-20621.54713321,0.00022699,2]
[313278419,1707072638123,-301.03036373,0.00022699,2]
[313278420,1707072638226,-33816.6003079,0.00022699,2]
[313278421,1707072638238,-7567.78490808,0.00022699,2]
[313278422,1707072638249,-2399.39631331,0.00022699,2]
[313278495,1707072640489,-430.61952,0.00022699,2]
[313278496,1707072640549,-14715.65351109,0.00022699,2]
[313278497,1707072640610,-1444.49629537,0.00022699,2]
[313278498,1707072640622,-2262.50270725,0.00022699,2]
[313278499,1707072640634,-377.63072068,0.00022699,2]
[313278500,1707072641386,-156737.16736205,0.00022699,2]
[313278501,1707072641399,-1600.65,0.00022699,2]
[313278502,1707072641410,-690.03922118,0.00022699,2]
[313278503,1707072641422,-306.58914448,0.00022699,2]
[313278507,1707072641729,-9610.85318401,0.00022699,2]
[313278508,1707072641881,-189328.18796074,0.00022699,2]
[313278509,1707072642883,-236716.4964915,0.00022699,2]
[313278510,1707072643008,-350.0090091,0.00022699,2]
[313278511,1707072643069,-251.65685941,0.00022699,2]
[313278512,1707072643081,-148607.66980017,0.00022699,2]
[313278513,1707072643128,-5125.0065,0.00022699,2]
[313278514,1707072643142,-13199.93249609,0.00022699,2]
[313278515,1707072643155,-6001.39089988,0.00022699,2]
[313278516,1707072643168,-353.25040439,0.00022699,2]
[313278517,1707072643189,-275.58258883,0.00022699,2]
[313278518,1707072643252,-552.90002891,0.00022699,2]
[313278519,1707072646252,-10000.0,0.00022699,2]
[313278525,1707072648882,155.99,0.00022104,2]
[313278526,1707072670648,964.17,0.00021893,2]
[313278527,1707072676157,200.0,0.00021893,2]
[313278528,1707072733125,250.0,0.00021858,2]
[313278529,1707072740577,1276.93041356,0.00022017,2]
[313278530,1707072745673,274.76884876,0.00022471,2]
[313278531,1707072760996,1399.78,0.00021848,2]
[313278532,1707072813645,203.0,0.00021893,2]
[313278533,1707072942813,162.27716285,0.00022469,2]
[313278534,1707072948901,6514.01,0.00021918,2]
[313278535,1707072981318,168.41,0.00021795,2]
[313278536,1707072988475,499.77,0.00021785,2]
[313278537,1707073015628,326.12,0.00019846,2]
[313278538,1707073015833,326.12,0.0002211,2]
[313278539,1707073029399,442.6,0.00021755,2]
[313278540,1707073038164,-164.49043128,0.00039,120]
[313278541,1707073038187,-508.40368682,0.0004,120]
[313278542,1707073038211,-499.99891599,0.0004,120]
[313278543,1707073038250,-1000.0,0.000418,37]
[313278544,1707073038278,-5824.61064327,0.000426,120]
[313278545,1707073038301,-500.0,0.00043,60]
[313278546,1707073038343,-203.0,0.00043064,34]
[313278547,1707073038371,-3085.66395035,0.00043835,120]
[313278548,1707073038395,-203.0,0.0004391,35]
[313278549,1707073038418,-389.66632407,0.0004398,118]
[313278550,1707073038440,-173.95094416,0.00044,120]
[313278551,1707073038467,-203.0,0.00044757,36]
[313278552,1707073038493,-50000.0,0.00045,35]
[313278553,1707073038516,-849.74665875,0.00045,120]
[313278554,1707073038541,-1000.0,0.00045,120]
[313278555,1707073038564,-5000.0,0.00045,40]
[313278556,1707073038587,-12000.0,0.00045,120]
[313278557,1707073038610,-6071.27,0.000451,120]
[313278558,1707073038636,-203.0,0.00045604,38]
[313278559,1707073038659,-1034.59075451,0.0004588,100]
[313278560,1707073038682,-2659.04697781,0.0004597,39]
[313278561,1707073038706,-50000.0,0.00046,36]
[313278562,1707073038729,-3201.30085104,0.00046,46]
[313278563,1707073038753,-5000.0,0.00046,40]
[313278564,1707073038776,-203.0,0.00046451,39]
[313278565,1707073038801,-524.91053792,0.00046575,60]
[313278566,1707073038825,-500.0,0.00046575,60]
[313278567,1707073038848,-500.0,0.00046575,60]
[313278568,1707073038872,-1000.0,0.00046575,120]
[313278569,1707073038896,-187.5,0.00046575,120]
[313278570,1707073038924,-5000.0,0.00046575,40]
[313278571,1707073038951,-1000.0,0.00046575,40]
[313278572,1707073038980,-289.26100823,0.000468,60]
[313278573,1707073039003,-5000.0,0.00046849,45]
[313278574,1707073039025,-1000.0,0.00046849,45]
[313278575,1707073039047,-3627.11,0.00046849,120]
[313278576,1707073039069,-558.46,0.00046849,120]
[313278577,1707073039092,-5000.0,0.0004688,35]
[313278578,1707073039117,-50000.0,0.00047,37]
[313278579,1707073039141,-3000.0,0.00047,47]
[313278580,1707073039165,-1155.49,0.00047,120]
[313278581,1707073039187,-222.0,0.00047,120]
[313278582,1707073039211,-5000.0,0.00047123,50]
[313278583,1707073039235,-1000.0,0.00047123,50]
[313278584,1707073039264,-203.0,0.00047298,40]
[313278585,1707073039291,-2000.0,0.00047316,120]
[313278586,1707073039315,-2000.0,0.00047316,120]
[313278587,1707073039340,-5000.0,0.00047397,55]
[313278588,1707073039363,-1000.0,0.00047397,55]
[313278589,1707073039386,-544.19254905,0.000475,120]
[313278590,1707073039411,-154.50057284,0.00047515,120]
[313278591,1707073039434,-154.50057284,0.00047515,120]
[313278592,1707073039459,-154.50057284,0.00047515,120]
[313278593,1707073039483,-154.50057284,0.00047515,120]
[313278594,1707073039508,-154.50057284,0.00047515,120]
[313278595,1707073039531,-154.50057284,0.00047515,120]
[313278596,1707073039554,-154.50057284,0.00047515,120]
[313278597,1707073039578,-154.50057284,0.00047515,120]
[313278598,1707073039601,-154.50057284,0.00047515,120]
[313278599,1707073039626,-154.50057284,0.00047515,120]
[313278600,1707073039650,-154.50057284,0.00047515,120]
[313278601,1707073039675,-154.50057284,0.00047515,120]
[313278602,1707073039700,-154.50057284,0.00047515,120]
[313278603,1707073039723,-154.50057284,0.00047515,120]
[313278604,1707073039749,-154.50057284,0.00047515,120]
[313278605,1707073039772,-193.0,0.0004753,65]
[313278606,1707073039798,-1000.0,0.000476,44]
[313278607,1707073039822,-5000.0,0.00047671,60]
[313278608,1707073039848,-1000.0,0.00047671,60]
[313278609,1707073039877,-345.0,0.000477,38]
[313278610,1707073039900,-1000.0,0.000477,44]
[313278611,1707073039925,-1000.0,0.000478,44]
[313278612,1707073039948,-1000.0,0.000479,44]
[313278613,1707073039970,-5000.0,0.00047945,65]
[313278614,1707073039994,-1000.0,0.00047945,65]
[313278615,1707073040019,-50000.0,0.00048,38]
[313278616,1707073040041,-481.0060436,0.00048,120]
[313278617,1707073040064,-4000.0,0.00048,50]
[313278618,1707073040086,-507.18,0.00048,120]
[313278619,1707073040109,-26203.64,0.00048,120]
[313278620,1707073040282,-1000.0,0.00048,120]
[313278621,1707073040304,-1000.0,0.00048,44]
[313278622,1707073040328,-203.0,0.00048145,41]
[313278623,1707073040353,-345.0,0.000482,38]
[313278624,1707073040377,-5000.0,0.00048219,70]
[313278625,1707073040400,-1000.0,0.00048219,70]
[313278626,1707073040424,-3590.90763348,0.00048329,120]
[313278627,1707073040449,-4612.06915485,0.00048493,75]
[313278628,1707073040470,-1000.0,0.00048493,75]
[313278629,1707073040493,-988083.95,0.000485,120]
[313278630,1707073040517,-1115829.0,0.000485,120]
[313278631,1707073040538,-325.92542648,0.000485,120]
[313278632,1707073040559,-920.36791224,0.000485,120]
[313278633,1707073040581,-5000.0,0.000485,50]
[313278634,1707073040604,-345.0,0.000487,39]
[313278635,1707073040628,-3000.0,0.000487,54]
[313278636,1707073040649,-200.0,0.000487,76]
[313278637,1707073040670,-1806.0,0.000487,117]
[313278638,1707073040693,-3000.0,0.0004871,54]
[313278639,1707073040717,-5445.117097,0.0004872,54]
[313278640,1707073040739,-3103.90510772,0.00048749,61]
[313278641,1707073040761,-3566.68812688,0.0004875,117]
[313278642,1707073040786,-1000.0,0.00048767,80]
[313278643,1707073040811,-4293.47759693,0.000488,70]
[313278644,1707073040835,-289.55836815,0.000488,120]
[313278645,1707073040856,-1886.223508,0.000489,76]
[313278646,1707073040878,-2664.0,0.00048989,45]
[313278647,1707073040901,-203.0,0.00048991,43]
[313278648,1707073040927,-50000.0,0.00049,39]
[313278649,1707073040950,-680.78391248,0.00049,120]
[313278650,1707073040973,-445269.02728634,0.00049,120]
[313278651,1707073042672,261.65996166,0.00021785,2]
[313278652,1707073049203,8112.77428237,0.00021785,2]
[313278653,1707073053162,1131.20769499,0.00021785,2]
[313278654,1707073053627,203.0,0.00021893,2]
[313278655,1707073056882,162.10481077,0.00020517,2]
[313278656,1707073061982,167.0,0.00022426,2]
[313278657,1707073064252,-400.00050884,0.0004,120]
[313278658,1707073064325,-217.63350506,0.00046575,120]
[313278659,1707073064388,-1851083.97271366,0.00049,120]
[313278660,1707073064411,-1000000.0,0.00049,120]
[313278661,1707073064434,-156.23571152,0.00049,60]
[313278662,1707073064457,-1025.49598138,0.00049,120]
[313278663,1707073064480,-1000.0,0.00049,77]
[313278664,1707073064513,-1000.0,0.00049041,85]
[313278665,1707073064534,-1000.0,0.000491,77]
[313278666,1707073064558,-1000.0,0.000492,120]
[313278667,1707073064581,-5034.0,0.000492,120]